[Event "Championnat d'Europe Rapide"]
[Date "2024.12.07"]
[White "Kukk, Sander"]
[Black "Korobov, Anton"]
[WhiteElo "2234"]
[BlackElo "2629"]
[Round "2.11"]
[Result "0-1"]
[TimeControl "900+10"]

1. b3 {[%emt 00:00:02] [%clk 00:15:18]} d5 {[%emt 00:00:05] [%clk 00:15:16]} 2.
e3 {[%clk 00:15:26]} Nf6 {[%emt 00:00:10] [%clk 00:15:15]} 3. Bb2 {[%emt
00:00:02] [%clk 00:15:35]} Bf5 {[%emt 00:00:07] [%clk 00:15:18]} 4. Nf3 {[%emt
00:00:12] [%clk 00:15:33]} e6 {[%emt 00:00:02] [%clk 00:15:25]} 5. d4 {[%emt
00:00:06] [%clk 00:15:37]} Nbd7 {[%emt 00:00:16] [%clk 00:15:19]} 6. Bd3 {[%emt
00:00:05] [%clk 00:15:43]} Ne4 {[%emt 00:00:05] [%clk 00:15:23]} 7. O-O {[%emt
00:00:09] [%clk 00:15:45]} Bd6 {[%emt 00:00:02] [%clk 00:15:30]} 8. Ne5 {[%emt
00:02:38] [%clk 00:13:18]} O-O {[%emt 00:00:16] [%clk 00:15:23]} 9. f3 {[%emt
00:00:27] [%clk 00:13:01]} Nef6 {[%emt 00:00:06] [%clk 00:15:27]} 10. Nd2 {[%emt
00:00:48] [%clk 00:12:23]} c5 {[%emt 00:00:30] [%clk 00:15:07]} 11. Qe2 {[%emt
00:01:35] [%clk 00:10:58]} Rc8 {[%emt 00:00:35] [%clk 00:14:42]} 12. Nxd7 {[%emt
00:01:59] [%clk 00:09:10]} Nxd7 {[%emt 00:00:14] [%clk 00:14:38]} 13. e4 {[%emt
00:00:44] [%clk 00:08:36]} Bg6 {[%emt 00:00:12] [%clk 00:14:36]} 14. c4 {[%emt
00:01:01] [%clk 00:07:46]} cxd4 {[%emt 00:00:43] [%clk 00:14:02]} 15. exd5
{[%emt 00:00:40] [%clk 00:07:15]} exd5 {[%emt 00:00:39] [%clk 00:13:33]} 16.
Bxg6 {[%emt 00:00:03] [%clk 00:07:22]} hxg6 {[%emt 00:00:06] [%clk 00:13:37]}
17. Bxd4 {[%emt 00:03:29] [%clk 00:04:04]} Re8 {[%emt 00:01:57] [%clk 00:11:50]}
18. Qf2 {[%emt 00:00:12] [%clk 00:04:02]} Nc5 {[%emt 00:00:10] [%clk 00:11:50]}
19. Rfe1 {[%emt 00:01:48] [%clk 00:02:24]} Ne6 {[%emt 00:02:14] [%clk 00:09:46]}
20. Kh1 {[%emt 00:00:23] [%clk 00:02:11]} Qg5 {[%emt 00:00:40] [%clk 00:09:15]}
21. cxd5 {[%emt 00:00:50] [%clk 00:01:32]} Qf4 {[%emt 00:00:26] [%clk 00:08:59]}
0-1

[Site "Europe Echecs"]

[Event "Championnat d'Europe Rapide"]
[Date "2024.12.07"]
[White "Pultinevicius, Paulius"]
[Black "Kukov, Velislav"]
[WhiteElo "2579"]
[BlackElo "2316"]
[Round "2.12"]
[Result "1-0"]
[TimeControl "900+10"]

1. d4 {[%clk 00:15:19]} Nf6 {[%emt 00:00:04] [%clk 00:15:16]} 2. c4 {[%emt
00:00:03] [%clk 00:15:27]} Nc6 {[%clk 00:15:25]} 3. Nf3 {[%emt 00:00:10] [%clk
00:15:27]} e6 {[%emt 00:00:02] [%clk 00:15:33]} 4. Nc3 {[%emt 00:00:29] [%clk
00:15:09]} Bb4 {[%emt 00:00:06] [%clk 00:15:37]} 5. Bd2 {[%emt 00:00:05] [%clk
00:15:13]} O-O {[%emt 00:00:20] [%clk 00:15:27]} 6. e3 {[%emt 00:00:12] [%clk
00:15:11]} d6 {[%emt 00:00:08] [%clk 00:15:29]} 7. Qc2 {[%emt 00:00:05] [%clk
00:15:16]} e5 {[%emt 00:00:12] [%clk 00:15:27]} 8. d5 {[%emt 00:02:05] [%clk
00:13:21]} Ne7 {[%emt 00:00:33] [%clk 00:15:03]} 9. Bd3 {[%emt 00:00:02] [%clk
00:13:29]} a5 {[%emt 00:00:41] [%clk 00:14:33]} 10. a3 {[%emt 00:00:15] [%clk
00:13:25]} Bxc3 {[%emt 00:00:30] [%clk 00:14:13]} 11. Bxc3 {[%emt 00:00:01]
[%clk 00:13:32]} a4 {[%emt 00:00:04] [%clk 00:14:20]} 12. O-O-O {[%emt 00:01:22]
[%clk 00:12:20]} b5 {[%emt 00:00:30] [%clk 00:14:00]} 13. cxb5 {[%emt 00:00:04]
[%clk 00:12:26]} Nexd5 {[%emt 00:00:29] [%clk 00:13:41]} 14. Bxh7+ {[%emt
00:00:12] [%clk 00:12:24]} Nxh7 {[%emt 00:00:02] [%clk 00:13:49]} 15. Rxd5
{[%emt 00:00:02] [%clk 00:12:33]} Be6 {[%emt 00:00:13] [%clk 00:13:45]} 16. Rd2
{[%emt 00:00:02] [%clk 00:12:41]} Qb8 {[%emt 00:00:15] [%clk 00:13:41]} 17. h4
{[%emt 00:00:15] [%clk 00:12:35]} Qxb5 {[%emt 00:00:27] [%clk 00:13:24]} 18. Ng5
{[%emt 00:00:03] [%clk 00:12:42]} Nxg5 {[%emt 00:02:37] [%clk 00:10:58]} 19.
hxg5 {[%emt 00:00:01] [%clk 00:12:50]} f5 {[%emt 00:00:27] [%clk 00:10:41]} 20.
f4 {[%emt 00:00:39] [%clk 00:12:21]} Kf7 {[%emt 00:02:55] [%clk 00:07:56]} 21.
fxe5 {[%emt 00:02:34] [%clk 00:09:58]} dxe5 {[%emt 00:00:59] [%clk 00:07:06]}
22. g4 {[%emt 00:00:19] [%clk 00:09:49]} Rh8 {[%emt 00:00:44] [%clk 00:06:32]}
23. Rhd1 {[%emt 00:00:32] [%clk 00:09:28]} g6 {[%emt 00:02:18] [%clk 00:04:23]}
24. gxf5 {[%emt 00:00:20] [%clk 00:09:18]} gxf5 {[%emt 00:00:31] [%clk
00:04:03]} 25. Rd5 {[%emt 00:00:45] [%clk 00:08:43]} Qc6 {[%emt 00:02:25] [%clk
00:01:47]} 26. Rxe5 {[%emt 00:00:11] [%clk 00:08:43]} Rh1 {[%emt 00:00:24] [%clk
00:01:33]} 27. g6+ {[%emt 00:00:11] [%clk 00:08:41]} Kg8 {[%emt 00:00:20] [%clk
00:01:23]} 28. e4 {[%emt 00:00:56] [%clk 00:07:56]} Rxd1+ {[%emt 00:01:15] [%clk
00:00:17]} 29. Qxd1 {[%emt 00:00:01] [%clk 00:08:05]} Bb3 {[%emt 00:00:15] [%clk
00:00:12]} 30. Qh5 {[%emt 00:00:07] [%clk 00:08:08]} 1-0

[Site "Europe Echecs"]

[Event "Championnat d'Europe Rapide"]
[Date "2024.12.07"]
[White "Dinev, Dejan"]
[Black "Sargissian, Gabriel"]
[WhiteElo "2209"]
[BlackElo "2628"]
[Round "2.13"]
[Result "0-1"]
[TimeControl "900+10"]

1. d4 {[%emt 00:00:13] [%clk 00:15:04]} Nf6 {[%emt 00:00:02] [%clk 00:15:18]} 2.
Nf3 {[%emt 00:00:04] [%clk 00:15:10]} e6 {[%emt 00:00:05] [%clk 00:15:24]} 3. g3
{[%emt 00:00:02] [%clk 00:15:18]} b5 {[%emt 00:00:14] [%clk 00:15:20]} 4. a4
{[%emt 00:00:11] [%clk 00:15:18]} b4 {[%emt 00:00:07] [%clk 00:15:23]} 5. c4
{[%emt 00:00:01] [%clk 00:15:26]} Bb7 {[%emt 00:00:12] [%clk 00:15:21]} 6. Bg2
{[%emt 00:00:03] [%clk 00:15:33]} a5 {[%emt 00:00:40] [%clk 00:14:51]} 7. b3
{[%emt 00:00:04] [%clk 00:15:39]} d6 {[%emt 00:00:09] [%clk 00:14:52]} 8. O-O
{[%emt 00:00:16] [%clk 00:15:33]} Nbd7 {[%emt 00:00:06] [%clk 00:14:56]} 9. Nbd2
{[%emt 00:00:06] [%clk 00:15:37]} Be7 {[%emt 00:03:11] [%clk 00:11:56]} 10. Re1
{[%emt 00:00:18] [%clk 00:15:28]} O-O {[%emt 00:00:16] [%clk 00:11:50]} 11. e4
{[%emt 00:00:17] [%clk 00:15:21]} e5 {[%emt 00:00:02] [%clk 00:11:57]} 12. Bb2
{[%emt 00:00:11] [%clk 00:15:21]} Re8 {[%emt 00:00:48] [%clk 00:11:19]} 13. Rc1
{[%emt 00:00:12] [%clk 00:15:18]} exd4 {[%emt 00:01:05] [%clk 00:10:24]} 14.
Nxd4 {[%emt 00:00:17] [%clk 00:15:11]} Bf8 {[%emt 00:00:47] [%clk 00:09:48]} 15.
Qc2 {[%emt 00:00:43] [%clk 00:14:38]} g6 {[%emt 00:00:45] [%clk 00:09:13]} 16.
Rcd1 {[%emt 00:02:23] [%clk 00:12:25]} Nc5 {[%emt 00:00:37] [%clk 00:08:46]} 17.
f3 {[%emt 00:00:20] [%clk 00:12:15]} Bg7 {[%emt 00:00:30] [%clk 00:08:26]} 18.
Nf1 {[%emt 00:00:04] [%clk 00:12:21]} Nfd7 {[%emt 00:00:12] [%clk 00:08:24]} 19.
Ne3 {[%emt 00:00:07] [%clk 00:12:24]} Ne5 {[%emt 00:00:52] [%clk 00:07:42]} 20.
Nd5 {[%emt 00:00:11] [%clk 00:12:23]} c6 {[%emt 00:00:18] [%clk 00:07:33]} 21.
Ne3 {[%emt 00:00:18] [%clk 00:12:15]} Qb6 {[%emt 00:01:46] [%clk 00:05:58]} 22.
Kh1 {[%emt 00:00:32] [%clk 00:11:53]} Rad8 {[%emt 00:00:16] [%clk 00:05:53]} 23.
f4 {[%emt 00:00:18] [%clk 00:11:44]} Ned3 {[%emt 00:00:38] [%clk 00:05:26]} 24.
Rxd3 {[%emt 00:01:50] [%clk 00:10:03]} Nxd3 {[%emt 00:00:02] [%clk 00:05:34]}
25. Qxd3 {[%emt 00:00:02] [%clk 00:10:11]} c5 {[%emt 00:00:02] [%clk 00:05:42]}
26. Nec2 {[%emt 00:05:56] [%clk 00:04:25]} cxd4 {[%emt 00:00:04] [%clk
00:05:48]} 27. Bxd4 {[%emt 00:00:01] [%clk 00:04:34]} Bxd4 {[%emt 00:00:04]
[%clk 00:05:55]} 28. Nxd4 {[%emt 00:00:02] [%clk 00:04:42]} d5 {[%emt 00:00:37]
[%clk 00:05:27]} 29. c5 {[%emt 00:02:20] [%clk 00:02:32]} Qxc5 {[%emt 00:00:06]
[%clk 00:05:31]} 30. e5 {[%emt 00:00:06] [%clk 00:02:36]} Qc3 {[%emt 00:00:28]
[%clk 00:05:13]} 31. Qd1 {[%emt 00:00:02] [%clk 00:02:44]} Ba6 {[%emt 00:00:33]
[%clk 00:04:50]} 32. Bf1 {[%emt 00:01:43] [%clk 00:01:11]} Bxf1 {[%emt 00:00:29]
[%clk 00:04:31]} 33. Rxf1 {[%clk 00:01:20]} Rc8 {[%emt 00:00:43] [%clk
00:03:58]} 34. Nb5 {[%emt 00:00:04] [%clk 00:01:25]} Qb2 {[%emt 00:00:02] [%clk
00:04:07]} 35. Nd6 {[%emt 00:00:22] [%clk 00:01:13]} Rc2 {[%emt 00:01:30] [%clk
00:02:47]} 36. Qxd5 {[%emt 00:00:02] [%clk 00:01:20]} Rxh2+ {[%emt 00:00:24]
[%clk 00:02:33]} 37. Kg1 {[%emt 00:00:01] [%clk 00:01:30]} Rf8 {[%emt 00:01:35]
[%clk 00:01:08]} 38. Nc4 {[%emt 00:00:57] [%clk 00:00:43]} Qe2 {[%emt 00:00:08]
[%clk 00:01:10]} 39. Nxa5 {[%emt 00:00:24] [%clk 00:00:29]} Rh3 {[%emt 00:00:11]
[%clk 00:01:08]} 40. Qg2 {[%emt 00:00:04] [%clk 00:00:35]} Qe3+ {[%emt 00:00:03]
[%clk 00:01:15]} 41. Qf2 {[%emt 00:00:11] [%clk 00:00:34]} Rxg3+ {[%emt
00:00:06] [%clk 00:01:20]} 42. Kh2 {[%clk 00:00:43]} Rh3+ {[%emt 00:00:12] [%clk
00:01:18]} 43. Kg2 {[%emt 00:00:01] [%clk 00:00:52]} Qxf2+ {[%emt 00:00:32]
[%clk 00:00:56]} 44. Rxf2 {[%emt 00:00:01] [%clk 00:01:01]} Rc3 {[%emt 00:00:01]
[%clk 00:01:05]} 45. f5 {[%emt 00:00:33] [%clk 00:00:39]} Re8 {[%emt 00:00:28]
[%clk 00:00:46]} 46. e6 {[%emt 00:00:15] [%clk 00:00:34]} fxe6 {[%emt 00:00:13]
[%clk 00:00:44]} 47. f6 {[%emt 00:00:06] [%clk 00:00:38]} Rec8 {[%emt 00:00:08]
[%clk 00:00:45]} 48. f7+ {[%emt 00:00:22] [%clk 00:00:25]} Kf8 {[%emt 00:00:02]
[%clk 00:00:54]} 49. Rf4 {[%emt 00:00:11] [%clk 00:00:24]} R8c5 {[%emt 00:00:06]
[%clk 00:00:58]} 50. Nb7 {[%emt 00:00:11] [%clk 00:00:23]} Rg5+ {[%emt 00:00:03]
[%clk 00:01:04]} 51. Kh2 {[%emt 00:00:08] [%clk 00:00:25]} Rxb3 {[%emt 00:00:25]
[%clk 00:00:50]} 52. a5 {[%emt 00:00:12] [%clk 00:00:23]} Rf5 {[%emt 00:00:11]
[%clk 00:00:48]} 53. Rd4 {[%emt 00:00:17] [%clk 00:00:17]} Kxf7 {[%emt 00:00:09]
[%clk 00:00:49]} 54. a6 {[%emt 00:00:03] [%clk 00:00:24]} Ra3 {[%emt 00:00:04]
[%clk 00:00:55]} 55. Nd6+ {[%emt 00:00:14] [%clk 00:00:20]} Kf6 {[%emt 00:00:04]
[%clk 00:01:01]} 56. Rxb4 {[%emt 00:00:14] [%clk 00:00:15]} Rxa6 {[%emt
00:00:06] [%clk 00:01:05]} 57. Ne8+ {[%emt 00:00:06] [%clk 00:00:20]} Kg5 {[%emt
00:00:13] [%clk 00:01:02]} 58. Ng7 {[%emt 00:00:06] [%clk 00:00:23]} e5 {[%emt
00:00:10] [%clk 00:01:02]} 59. Rb2 {[%emt 00:00:05] [%clk 00:00:29]} Rf7 {[%emt
00:00:10] [%clk 00:01:02]} 60. Rg2+ {[%emt 00:00:11] [%clk 00:00:28]} Kh4 {[%emt
00:00:11] [%clk 00:01:00]} 61. Ne8 {[%emt 00:00:04] [%clk 00:00:35]} Re6 {[%emt
00:00:04] [%clk 00:01:06]} 0-1

[Site "Europe Echecs"]

[Event "Championnat d'Europe Rapide"]
[Date "2024.12.07"]
[White "Mamedov, Rauf"]
[Black "Ribeiro, Gustavo"]
[WhiteElo "2656"]
[BlackElo "2241"]
[Round "2.14"]
[Result "1-0"]
[TimeControl "900+10"]

1. e4 {[%emt 00:00:03] [%clk 00:15:19]} e5 {[%clk 00:15:19]} 2. Nf3 {[%emt
00:00:03] [%clk 00:15:26]} Nc6 {[%clk 00:15:28]} 3. Bb5 {[%emt 00:00:04] [%clk
00:15:35]} a6 {[%clk 00:15:38]} 4. Ba4 {[%clk 00:15:44]} Nf6 {[%clk 00:15:47]}
5. Nc3 {[%emt 00:00:01] [%clk 00:15:53]} b5 {[%emt 00:00:27] [%clk 00:15:29]} 6.
Bb3 {[%emt 00:00:01] [%clk 00:16:02]} Bc5 {[%clk 00:15:38]} 7. Nd5 {[%clk
00:16:11]} O-O {[%emt 00:00:06] [%clk 00:15:43]} 8. O-O {[%emt 00:00:21] [%clk
00:16:00]} Nxe4 {[%emt 00:00:45] [%clk 00:15:08]} 9. c3 {[%emt 00:01:06] [%clk
00:15:04]} Nf6 {[%emt 00:01:40] [%clk 00:13:39]} 10. d4 {[%emt 00:00:01] [%clk
00:15:13]} Nxd5 {[%emt 00:00:02] [%clk 00:13:47]} 11. Bxd5 {[%emt 00:01:41]
[%clk 00:13:41]} exd4 {[%emt 00:00:03] [%clk 00:13:55]} 12. Ng5 {[%emt 00:00:12]
[%clk 00:13:38]} Qf6 {[%emt 00:01:21] [%clk 00:12:44]} 13. Be4 {[%emt 00:02:55]
[%clk 00:10:53]} g6 {[%emt 00:01:12] [%clk 00:11:43]} 14. Nxh7 {[%emt 00:00:03]
[%clk 00:10:59]} Kxh7 {[%emt 00:00:01] [%clk 00:11:52]} 15. Qh5+ {[%emt
00:00:01] [%clk 00:11:08]} Kg8 {[%emt 00:00:02] [%clk 00:12:00]} 16. Qxc5 {[%emt
00:00:02] [%clk 00:11:16]} Re8 {[%clk 00:12:09]} 17. Bxc6 {[%emt 00:01:33] [%clk
00:09:53]} Qxc6 {[%emt 00:00:10] [%clk 00:12:10]} 18. Qxd4 {[%emt 00:00:02]
[%clk 00:10:01]} Bb7 {[%clk 00:12:18]} 19. f3 {[%clk 00:10:10]} Qb6 {[%emt
00:00:21] [%clk 00:12:07]} 20. Qxb6 {[%emt 00:00:11] [%clk 00:10:09]} cxb6
{[%emt 00:00:01] [%clk 00:12:15]} 21. Kf2 {[%emt 00:00:46] [%clk 00:09:34]} b4
{[%emt 00:00:16] [%clk 00:12:10]} 22. Bd2 {[%emt 00:00:17] [%clk 00:09:27]} Rac8
{[%emt 00:00:10] [%clk 00:12:10]} 23. Rac1 {[%emt 00:00:31] [%clk 00:09:05]} Bd5
{[%emt 00:00:13] [%clk 00:12:07]} 24. cxb4 {[%emt 00:01:21] [%clk 00:07:54]}
Bxa2 {[%emt 00:00:08] [%clk 00:12:09]} 25. Bc3 {[%clk 00:08:04]} Re6 {[%emt
00:00:46] [%clk 00:11:33]} 26. Rfd1 {[%emt 00:00:11] [%clk 00:08:02]} d5 {[%emt
00:00:07] [%clk 00:11:36]} 27. Bd4 {[%emt 00:00:09] [%clk 00:08:03]} Rc4 {[%emt
00:01:18] [%clk 00:10:29]} 28. Ra1 {[%emt 00:00:40] [%clk 00:07:33]} Rc2+ {[%emt
00:00:01] [%clk 00:10:37]} 29. Kg3 {[%clk 00:07:42]} Bc4 {[%emt 00:00:02] [%clk
00:10:46]} 30. Rac1 {[%emt 00:00:11] [%clk 00:07:40]} Rxc1 {[%emt 00:00:25]
[%clk 00:10:31]} 31. Rxc1 {[%emt 00:00:01] [%clk 00:07:49]} f6 {[%clk 00:10:40]}
32. Rc3 {[%emt 00:00:05] [%clk 00:07:54]} Kf7 {[%emt 00:00:29] [%clk 00:10:21]}
33. h4 {[%emt 00:00:14] [%clk 00:07:50]} Rc6 {[%emt 00:01:38] [%clk 00:08:54]}
34. Kf4 {[%emt 00:00:37] [%clk 00:07:22]} a5 {[%emt 00:00:26] [%clk 00:08:38]}
35. bxa5 {[%emt 00:00:13] [%clk 00:07:20]} bxa5 {[%clk 00:08:46]} 36. g4 {[%emt
00:01:12] [%clk 00:06:18]} a4 {[%emt 00:00:07] [%clk 00:08:49]} 37. g5 {[%emt
00:00:28] [%clk 00:05:59]} fxg5+ {[%emt 00:00:35] [%clk 00:08:25]} 38. hxg5
{[%emt 00:00:08] [%clk 00:06:01]} Bb5 {[%emt 00:00:16] [%clk 00:08:19]} 39. Re3
{[%emt 00:00:02] [%clk 00:06:09]} Re6 {[%emt 00:00:14] [%clk 00:08:15]} 40. Ra3
{[%emt 00:00:25] [%clk 00:05:54]} Re1 {[%emt 00:00:18] [%clk 00:08:07]} 41. Bf6
{[%emt 00:01:17] [%clk 00:04:46]} Ke8 {[%emt 00:02:10] [%clk 00:06:07]} 42. b3
{[%emt 00:00:07] [%clk 00:04:50]} axb3 {[%emt 00:00:15] [%clk 00:06:02]} 43.
Rxb3 {[%clk 00:04:59]} Bc4 {[%emt 00:00:02] [%clk 00:06:10]} 44. Rb7 {[%emt
00:00:21] [%clk 00:04:48]} Bd3 {[%emt 00:00:40] [%clk 00:05:40]} 45. Rb6 {[%emt
00:00:21] [%clk 00:04:37]} Bf5 {[%emt 00:01:31] [%clk 00:04:19]} 46. Rd6 {[%emt
00:00:14] [%clk 00:04:33]} Be6 {[%emt 00:00:36] [%clk 00:03:53]} 47. Rd8+ {[%emt
00:00:15] [%clk 00:04:28]} Kf7 {[%emt 00:00:01] [%clk 00:04:01]} 48. Rh8 {[%emt
00:00:02] [%clk 00:04:36]} Bf5 {[%emt 00:00:04] [%clk 00:04:07]} 49. Bd4 {[%emt
00:00:13] [%clk 00:04:34]} Ke7 {[%emt 00:00:17] [%clk 00:04:00]} 50. Rb8 {[%emt
00:00:31] [%clk 00:04:13]} Kd7 {[%emt 00:00:12] [%clk 00:03:58]} 51. Rb6 {[%emt
00:00:03] [%clk 00:04:20]} Re6 {[%emt 00:00:06] [%clk 00:04:02]} 52. Rb5 {[%emt
00:00:10] [%clk 00:04:20]} Kc6 {[%emt 00:00:02] [%clk 00:04:10]} 53. Rc5+ {[%emt
00:00:02] [%clk 00:04:28]} Kd6 {[%emt 00:00:07] [%clk 00:04:13]} 54. Ra5 {[%emt
00:00:17] [%clk 00:04:21]} Kc6 {[%emt 00:00:28] [%clk 00:03:55]} 55. Rc5+ {[%emt
00:01:06] [%clk 00:03:24]} Kd6 {[%emt 00:00:02] [%clk 00:04:04]} 56. Rc1 {[%emt
00:00:15] [%clk 00:03:19]} Re8 {[%emt 00:00:34] [%clk 00:03:40]} 57. Rc3 {[%emt
00:00:21] [%clk 00:03:08]} Rc8 {[%emt 00:00:32] [%clk 00:03:19]} 58. Ra3 {[%emt
00:00:09] [%clk 00:03:08]} Kc6 {[%emt 00:00:31] [%clk 00:02:58]} 59. Ra5 {[%emt
00:00:13] [%clk 00:03:06]} Re8 {[%emt 00:00:03] [%clk 00:03:04]} 60. Rc5+ {[%emt
00:00:33] [%clk 00:02:42]} Kd6 {[%emt 00:02:16] [%clk 00:03:09]} 61. Rb5 {[%emt
00:01:29] [%clk 00:03:51]} Re1 {[%emt 00:00:16] [%clk 00:03:02]} 62. Rb6+ {[%emt
00:00:02] [%clk 00:03:59]} Kc7 {[%emt 00:00:01] [%clk 00:03:11]} 63. Rf6 {[%emt
00:00:04] [%clk 00:04:05]} Bc2 {[%emt 00:02:12] [%clk 00:01:09]} 64. Be5+ {[%emt
00:00:03] [%clk 00:04:12]} Kb7 {[%emt 00:00:04] [%clk 00:01:15]} 65. Rd6 {[%emt
00:00:55] [%clk 00:03:28]} Rd1 {[%emt 00:00:03] [%clk 00:01:21]} 66. Rd8 {[%emt
00:00:06] [%clk 00:03:32]} Bf5 {[%emt 00:00:19] [%clk 00:01:13]} 67. Rd6 {[%emt
00:00:15] [%clk 00:03:27]} Bc2 {[%emt 00:00:37] [%clk 00:00:45]} 68. Rf6 {[%emt
00:00:18] [%clk 00:03:20]} Rf1 {[%emt 00:00:10] [%clk 00:00:45]} 69. Ke3 {[%emt
00:00:56] [%clk 00:02:31]} Re1+ {[%emt 00:00:22] [%clk 00:00:36]} 70. Kd4 {[%emt
00:00:19] [%clk 00:02:21]} Rd1+ {[%emt 00:00:22] [%clk 00:00:24]} 71. Kc5 {[%emt
00:00:02] [%clk 00:02:29]} Bb1 {[%emt 00:00:02] [%clk 00:00:33]} 72. Rb6+ {[%emt
00:00:13] [%clk 00:02:26]} Kc8 {[%emt 00:00:12] [%clk 00:00:30]} 73. Kd6 {[%emt
00:00:49]} Rh1 {[%clk 00:00:17]} 74. Ke7 {[%emt 00:00:25] [%clk 00:01:55]} Rh7+
{[%emt 00:00:03] [%clk 00:00:25]} 75. Ke8 {[%emt 00:00:01] [%clk 00:02:04]} 1-0

[Site "Europe Echecs"]

[Event "Championnat d'Europe Rapide"]
[Date "2024.12.07"]
[White "Fressinet, Laurent"]
[Black "Tudor, Henry Edward"]
[WhiteElo "2588"]
[BlackElo "2375"]
[Round "2.15"]
[Result "1-0"]
[TimeControl "900+10"]

1. d4 {[%emt 00:00:01] [%clk 00:15:18]} Nf6 {[%emt 00:00:03] [%clk 00:15:17]} 2.
Nf3 {[%emt 00:00:03] [%clk 00:15:25]} d5 {[%emt 00:00:43] [%clk 00:14:43]} 3. g3
{[%emt 00:00:03] [%clk 00:15:33]} e6 {[%emt 00:00:14] [%clk 00:14:39]} 4. Bg2
{[%emt 00:00:02] [%clk 00:15:40]} Be7 {[%clk 00:14:48]} 5. c4 {[%emt 00:00:07]
[%clk 00:15:44]} O-O {[%emt 00:00:05] [%clk 00:14:53]} 6. Qc2 {[%emt 00:00:03]
[%clk 00:15:52]} c5 {[%emt 00:00:40] [%clk 00:14:23]} 7. dxc5 {[%emt 00:00:03]
[%clk 00:15:59]} d4 {[%emt 00:00:43] [%clk 00:13:51]} 8. b4 {[%emt 00:00:08]
[%clk 00:16:00]} a5 {[%emt 00:00:11] [%clk 00:13:50]} 9. b5 {[%emt 00:00:02]
[%clk 00:16:08]} Bxc5 {[%emt 00:00:15] [%clk 00:13:45]} 10. Nbd2 {[%emt
00:00:05] [%clk 00:16:13]} Nbd7 {[%emt 00:01:43] [%clk 00:12:12]} 11. Nb3 {[%emt
00:00:30] [%clk 00:15:53]} Bb4+ {[%emt 00:00:04] [%clk 00:12:19]} 12. Bd2 {[%emt
00:00:10] [%clk 00:15:51]} e5 {[%emt 00:01:21] [%clk 00:11:09]} 13. a4 {[%emt
00:01:28] [%clk 00:14:33]} Qe7 {[%emt 00:01:00] [%clk 00:10:19]} 14. O-O {[%emt
00:00:26] [%clk 00:14:16]} Nc5 {[%emt 00:00:38] [%clk 00:09:52]} 15. Bxb4 {[%emt
00:01:17] [%clk 00:13:09]} axb4 {[%emt 00:00:03] [%clk 00:09:59]} 16. a5 {[%emt
00:00:09] [%clk 00:13:10]} Nfe4 {[%emt 00:04:32] [%clk 00:05:37]} 17. Nxc5
{[%emt 00:01:46] [%clk 00:11:35]} Nxc5 {[%emt 00:00:01] [%clk 00:05:46]} 18. Nd2
{[%emt 00:00:01] [%clk 00:11:43]} Bg4 {[%emt 00:01:55] [%clk 00:04:00]} 19. f3
{[%emt 00:03:19] [%clk 00:08:34]} Be6 {[%emt 00:00:23] [%clk 00:03:48]} 20. Qb2
{[%emt 00:00:06] [%clk 00:08:38]} b3 {[%emt 00:01:29] [%clk 00:02:30]} 21. Qa3
{[%emt 00:00:34] [%clk 00:08:13]} Rfc8 {[%emt 00:00:49] [%clk 00:01:51]} 22.
Nxb3 {[%emt 00:00:43] [%clk 00:07:40]} Bxc4 {[%emt 00:01:16] [%clk 00:00:46]}
23. Nxc5 {[%emt 00:00:02] [%clk 00:07:46]} Rxc5 {[%emt 00:00:02] [%clk
00:00:54]} 24. Rfc1 {[%emt 00:00:11] [%clk 00:07:45]} Qc7 {[%emt 00:00:12] [%clk
00:00:53]} 25. Qb4 {[%emt 00:00:56] [%clk 00:06:58]} Rc8 {[%emt 00:00:49] [%clk
00:00:15]} 26. a6 {[%emt 00:00:53] [%clk 00:06:16]} bxa6 {[%emt 00:00:08] [%clk
00:00:16]} 27. bxa6 {[%emt 00:00:06] [%clk 00:06:20]} Rb8 {[%emt 00:00:12] [%clk
00:00:14]} 28. Qa4 {[%emt 00:02:01] [%clk 00:04:30]} Qa7 {[%emt 00:00:12] [%clk
00:00:12]} 29. Rxc4 {[%emt 00:00:27] [%clk 00:04:12]} d3 {[%emt 00:00:06] [%clk
00:00:16]} 30. Kh1 {[%emt 00:00:28] [%clk 00:03:54]} dxe2 {[%emt 00:00:14] [%clk
00:00:12]} 31. Re4 {[%emt 00:01:43] [%clk 00:02:21]} Qc7 {[%emt 00:00:09] [%clk
00:00:13]} 32. Rxe2 {[%emt 00:00:11] [%clk 00:02:20]} h5 {[%emt 00:00:10] [%clk
00:00:13]} 33. f4 {[%emt 00:00:34] [%clk 00:01:55]} 1-0

[Site "Europe Echecs"]

[Event "Championnat d'Europe Rapide"]
[Date "2024.12.07"]
[White "Sadiku, Bedri"]
[Black "Lagarde, Maxime"]
[WhiteElo "2159"]
[BlackElo "2600"]
[Round "2.16"]
[Result "0-1"]
[TimeControl "900+10"]

1. d4 {[%emt 00:01:12] [%clk 00:14:06]} f5 {[%emt 00:00:09] [%clk 00:15:12]} 2.
c4 {[%emt 00:00:13] [%clk 00:14:03]} Nf6 {[%emt 00:00:02] [%clk 00:15:21]} 3.
Nc3 {[%emt 00:00:04] [%clk 00:14:08]} d6 {[%emt 00:00:02] [%clk 00:15:29]} 4.
Nf3 {[%emt 00:01:04] [%clk 00:13:14]} g6 {[%emt 00:00:02] [%clk 00:15:37]} 5.
Qc2 {[%emt 00:00:42] [%clk 00:12:41]} Bg7 {[%emt 00:00:59] [%clk 00:14:49]} 6.
e4 {[%emt 00:00:11] [%clk 00:12:40]} Nxe4 {[%emt 00:00:19] [%clk 00:14:39]} 7.
Nxe4 {[%emt 00:00:03] [%clk 00:12:47]} fxe4 {[%emt 00:00:02] [%clk 00:14:48]} 8.
Qxe4 {[%emt 00:00:03] [%clk 00:12:54]} Nc6 {[%emt 00:00:05] [%clk 00:14:53]} 9.
Bd2 {[%emt 00:00:26] [%clk 00:12:38]} O-O {[%emt 00:01:02] [%clk 00:14:01]} 10.
Bc3 {[%emt 00:01:19] [%clk 00:11:29]} Bf5 {[%emt 00:00:36] [%clk 00:13:34]} 11.
Qe3 {[%emt 00:00:17] [%clk 00:11:21]} e5 {[%emt 00:00:34] [%clk 00:13:12]} 12.
dxe5 {[%emt 00:01:07] [%clk 00:10:23]} dxe5 {[%emt 00:00:04] [%clk 00:13:19]}
13. Rd1 {[%emt 00:00:15] [%clk 00:10:17]} Nd4 {[%emt 00:00:07] [%clk 00:13:23]}
14. Bd3 {[%emt 00:01:17] [%clk 00:09:10]} Bxd3 {[%emt 00:01:59] [%clk 00:11:34]}
15. Qxd3 {[%emt 00:00:10] [%clk 00:09:10]} e4 {[%emt 00:00:08] [%clk 00:11:36]}
16. Qd2 {[%emt 00:02:34] [%clk 00:06:45]} exf3 {[%emt 00:00:05] [%clk 00:11:41]}
17. Bxd4 {[%emt 00:00:37] [%clk 00:06:19]} fxg2 {[%emt 00:00:02] [%clk
00:11:49]} 0-1

[Site "Europe Echecs"]